[Event "Titled Tuesday Blitz November 01 Late 2022"]
[White "Kodinets, Konstantin L."]
[Black "Zakhartsov, Vladimir"]
[WhiteFideId "4122011"]
[BlackFideId "4145097"]
[WhiteElo "2564"]
[BlackElo "2821"]
[Result "0-1"]
[Round "02"]
[TimeControl "180+1"]
[Date "2022.11.02"]
[WhiteClock "0:00:35"]
[BlackClock "0:00:51"]

1. d4 {[%clk 0:02:57]}  Nf6 {[%clk 0:02:57]} 2. Nf3 {[%clk 0:02:58]}  c5 {[%clk 0:02:54]} 3. d5 {[%clk 0:02:57]}  e6 {[%clk 0:02:55]} 4. Nc3 {[%clk 0:02:56]}  exd5 {[%clk 0:02:44]} 5. Nxd5 {[%clk 0:02:57]}  Nxd5 {[%clk 0:02:44]} 6. Qxd5 {[%clk 0:02:57]}  Be7 {[%clk 0:02:44]} 7. Bg5 {[%clk 0:02:58]}  O-O {[%clk 0:02:42]} 8. O-O-O {[%clk 0:02:58]}  Nc6 {[%clk 0:02:42]} 9. Bxe7 {[%clk 0:02:56]}  Qxe7 {[%clk 0:02:41]} 10. c3 {[%clk 0:02:51]}  Re8 {[%clk 0:02:30]} 11. e3 {[%clk 0:02:51]}  a6 {[%clk 0:02:28]} 12. h4 {[%clk 0:02:39]}  b5 {[%clk 0:02:25]} 13. Bd3 {[%clk 0:02:32]}  Bb7 {[%clk 0:02:01]} 14. Qh5 {[%clk 0:02:26]}  h6 {[%clk 0:01:49]} 15. Bc2 {[%clk 0:02:22]}  Rad8 {[%clk 0:01:40]} 16. Rh3 {[%clk 0:02:00]}  Ne5 {[%clk 0:01:35]} 17. Rg3 {[%clk 0:01:49]}  Qf6 {[%clk 0:01:34]} 18. e4 {[%clk 0:01:37]}  Kh8 {[%clk 0:01:17]} 19. Kb1 {[%clk 0:01:31]}  d5 {[%clk 0:01:12]} 20. exd5 {[%clk 0:01:17]}  Bxd5 {[%clk 0:01:13]} 21. Nxe5 {[%clk 0:00:54]}  Rxe5 {[%clk 0:01:14]} 22. Qg4 {[%clk 0:00:55]}  h5 {[%clk 0:01:02]} 23. Qh3 {[%clk 0:00:51]}  Be6 {[%clk 0:00:58]} 24. Rxd8+ {[%clk 0:00:45]}  Qxd8 {[%clk 0:00:58]} 25. Qh1 {[%clk 0:00:46]}  Qd2 {[%clk 0:00:54]} 26. Qd1 {[%clk 0:00:35]}  Re1 {[%clk 0:00:51]} 0-1


[Site "https://www.chess.com"]

[Event "Titled Tuesday Blitz November 01 Late 2022"]
[White "Krzyzanowski, Marcin"]
[Black "Leschinsky, Gary"]
[WhiteFideId "1132199"]
[BlackFideId "30951321"]
[WhiteElo "2435"]
[BlackElo "1855"]
[Result "1-0"]
[Round "02"]
[TimeControl "180+1"]
[Date "2022.11.02"]
[WhiteClock "0:01:45"]
[BlackClock "0:01:39"]

1. d4 {[%clk 0:03:00]}  d5 {[%clk 0:02:59]} 2. Bf4 {[%clk 0:03:00]}  c5 {[%clk 0:02:58]} 3. c3 {[%clk 0:02:57]}  Nc6 {[%clk 0:02:56]} 4. Nf3 {[%clk 0:02:56]}  cxd4 {[%clk 0:02:51]} 5. cxd4 {[%clk 0:02:56]}  Nf6 {[%clk 0:02:51]} 6. Nc3 {[%clk 0:02:56]}  a6 {[%clk 0:02:50]} 7. e3 {[%clk 0:02:56]}  Bf5 {[%clk 0:02:48]} 8. Be2 {[%clk 0:02:51]}  e6 {[%clk 0:02:47]} 9. O-O {[%clk 0:02:52]}  Bd6 {[%clk 0:02:44]} 10. Bxd6 {[%clk 0:02:46]}  Qxd6 {[%clk 0:02:43]} 11. Rc1 {[%clk 0:02:47]}  O-O {[%clk 0:02:43]} 12. Na4 {[%clk 0:02:47]}  Nd7 {[%clk 0:02:41]} 13. a3 {[%clk 0:02:44]}  Bg4 {[%clk 0:02:35]} 14. b4 {[%clk 0:02:43]}  Rac8 {[%clk 0:02:30]} 15. Nc5 {[%clk 0:02:42]}  Rc7 {[%clk 0:02:24]} 16. Bd3 {[%clk 0:02:34]}  h6 {[%clk 0:02:18]} 17. h3 {[%clk 0:02:34]}  Bxf3 {[%clk 0:02:17]} 18. Qxf3 {[%clk 0:02:34]}  e5 {[%clk 0:02:17]} 19. Qg3 {[%clk 0:02:26]}  Qf6 {[%clk 0:02:11]} 20. Rc2 {[%clk 0:02:21]}  exd4 {[%clk 0:02:05]} 21. Qxc7 {[%clk 0:02:20]}  Nde5 {[%clk 0:01:59]} 22. exd4 {[%clk 0:01:59]}  Nxd3 {[%clk 0:01:54]} 23. Nxd3 {[%clk 0:01:58]}  Qg6 {[%clk 0:01:52]} 24. Qg3 {[%clk 0:01:55]}  Qf6 {[%clk 0:01:51]} 25. Ne5 {[%clk 0:01:49]}  Nxd4 {[%clk 0:01:51]} 26. Nd7 {[%clk 0:01:47]}  Qf5 {[%clk 0:01:46]} 27. Nxf8 {[%clk 0:01:46]}  Qxc2 {[%clk 0:01:46]} 28. Qb8 {[%clk 0:01:46]}  Qd2 {[%clk 0:01:40]} 29. Ne6+ {[%clk 0:01:46]}  Kh7 {[%clk 0:01:39]} 30. Nxd4 {[%clk 0:01:46]}  Qxd4 {[%clk 0:01:39]} 31. Qxb7 {[%clk 0:01:45]} 1-0


[Site "https://www.chess.com"]

[Event "Titled Tuesday Blitz November 01 Late 2022"]
[White "Lazavik, Denis"]
[Black "Darini, Pouria"]
[WhiteFideId "13515110"]
[BlackFideId "12502200"]
[WhiteElo "2437"]
[BlackElo "2483"]
[Result "1-0"]
[Round "02"]
[TimeControl "180+1"]
[Date "2022.11.01"]
[WhiteClock "0:00:23"]
[BlackClock "0:00:07"]

1. d4 {[%clk 0:03:00]}  Nf6 {[%clk 0:02:59]} 2. c4 {[%clk 0:03:01]}  e6 {[%clk 0:03:00]} 3. Nf3 {[%clk 0:03:02]}  d5 {[%clk 0:02:54]} 4. Nc3 {[%clk 0:03:01]}  Bb4 {[%clk 0:02:50]} 5. Bg5 {[%clk 0:03:01]}  h6 {[%clk 0:02:50]} 6. Bxf6 {[%clk 0:03:00]}  Qxf6 {[%clk 0:02:50]} 7. e3 {[%clk 0:03:00]}  O-O {[%clk 0:02:49]} 8. Rc1 {[%clk 0:03:00]}  c5 {[%clk 0:02:49]} 9. cxd5 {[%clk 0:02:58]}  exd5 {[%clk 0:02:48]} 10. Be2 {[%clk 0:02:58]}  Be6 {[%clk 0:02:36]} 11. dxc5 {[%clk 0:02:52]}  Bxc5 {[%clk 0:02:12]} 12. O-O {[%clk 0:02:48]}  Rd8 {[%clk 0:02:10]} 13. Nd4 {[%clk 0:02:32]}  Bxd4 {[%clk 0:02:05]} 14. Qxd4 {[%clk 0:02:33]}  Qxd4 {[%clk 0:02:05]} 15. exd4 {[%clk 0:02:33]}  Nc6 {[%clk 0:02:06]} 16. Rfd1 {[%clk 0:02:33]}  Rac8 {[%clk 0:02:02]} 17. f3 {[%clk 0:02:33]}  Kf8 {[%clk 0:01:40]} 18. Kf2 {[%clk 0:02:32]}  Ne7 {[%clk 0:01:36]} 19. a3 {[%clk 0:02:26]}  Nf5 {[%clk 0:01:30]} 20. g4 {[%clk 0:02:22]}  Nd6 {[%clk 0:01:25]} 21. h4 {[%clk 0:02:21]}  f5 {[%clk 0:01:04]} 22. g5 {[%clk 0:02:07]}  f4 {[%clk 0:00:51]} 23. Bd3 {[%clk 0:02:05]}  Bf5 {[%clk 0:00:41]} 24. Bf1 {[%clk 0:01:56]}  hxg5 {[%clk 0:00:38]} 25. hxg5 {[%clk 0:01:55]}  Nf7 {[%clk 0:00:39]} 26. Ne2 {[%clk 0:01:52]}  Nxg5 {[%clk 0:00:33]} 27. Nxf4 {[%clk 0:01:52]}  Ne6 {[%clk 0:00:22]} 28. Ne2 {[%clk 0:01:45]}  Ke7 {[%clk 0:00:16]} 29. Nc3 {[%clk 0:01:43]}  Nf4 {[%clk 0:00:08]} 30. Ke3 {[%clk 0:01:10]}  g5 {[%clk 0:00:08]} 31. Bb5 {[%clk 0:01:00]}  Kf6 {[%clk 0:00:08]} 32. Rh1 {[%clk 0:00:57]}  Rh8 {[%clk 0:00:08]} 33. Rcd1 {[%clk 0:00:49]}  a6 {[%clk 0:00:08]} 34. Ba4 {[%clk 0:00:49]}  b5 {[%clk 0:00:05]} 35. Bb3 {[%clk 0:00:49]}  Rce8+ {[%clk 0:00:05]} 36. Kd2 {[%clk 0:00:49]}  Rd8 {[%clk 0:00:04]} 37. Rde1 {[%clk 0:00:45]}  Be6 {[%clk 0:00:04]} 38. Na2 {[%clk 0:00:39]}  a5 {[%clk 0:00:03]} 39. Bc2 {[%clk 0:00:36]}  Rb8 {[%clk 0:00:03]} 40. Nc1 {[%clk 0:00:35]}  b4 {[%clk 0:00:03]} 41. a4 {[%clk 0:00:35]}  Rxh1 {[%clk 0:00:03]} 42. Rxh1 {[%clk 0:00:34]}  Kg7 {[%clk 0:00:03]} 43. Nb3 {[%clk 0:00:33]}  Ra8 {[%clk 0:00:02]} 44. Nc5 {[%clk 0:00:30]}  Bf7 {[%clk 0:00:02]} 45. Bf5 {[%clk 0:00:28]}  Kf6 {[%clk 0:00:03]} 46. Bg4 {[%clk 0:00:28]}  Bg6 {[%clk 0:00:02]} 47. Nd7+ {[%clk 0:00:27]}  Ke7 {[%clk 0:00:02]} 48. Ne5 {[%clk 0:00:27]}  Kf6 {[%clk 0:00:02]} 49. Rc1 {[%clk 0:00:27]}  Bf7 {[%clk 0:00:02]} 50. Rc6+ {[%clk 0:00:27]}  Kg7 {[%clk 0:00:02]} 51. Rc7 {[%clk 0:00:27]}  Rf8 {[%clk 0:00:03]} 52. Ra7 {[%clk 0:00:26]}  Kg8 {[%clk 0:00:03]} 53. Rxa5 {[%clk 0:00:25]}  Be6 {[%clk 0:00:03]} 54. Bxe6+ {[%clk 0:00:21]}  Nxe6 {[%clk 0:00:03]} 55. Rxd5 {[%clk 0:00:22]}  Nf4 {[%clk 0:00:04]} 56. Rd6 {[%clk 0:00:22]}  Ra8 {[%clk 0:00:04]} 57. b3 {[%clk 0:00:22]}  Rc8 {[%clk 0:00:05]} 58. a5 {[%clk 0:00:22]}  Rc3 {[%clk 0:00:05]} 59. a6 {[%clk 0:00:22]}  Rc7 {[%clk 0:00:05]} 60. Rd8+ {[%clk 0:00:21]}  Kg7 {[%clk 0:00:05]} 61. Rd7+ {[%clk 0:00:22]}  Rxd7 {[%clk 0:00:05]} 62. Nxd7 {[%clk 0:00:23]}  Ne6 {[%clk 0:00:06]} 63. a7 {[%clk 0:00:23]}  Nxd4 {[%clk 0:00:07]} 64. a8=Q {[%clk 0:00:23]} 1-0


[Site "https://www.chess.com"]

[Event "Titled Tuesday Blitz November 01 Late 2022"]
[White "Lehtosaari, Mauri"]
[Black "Wessendorf, Thomas, Dr."]
[WhiteFideId "501999"]
[BlackFideId "4604270"]
[WhiteElo "2503"]
[BlackElo "2280"]
[Result "1-0"]
[Round "02"]
[TimeControl "180+1"]
[Date "2022.11.02"]
[WhiteClock "0:00:54"]
[BlackClock "0:00:01"]

1. d4 {[%clk 0:03:00]}  Nf6 {[%clk 0:02:59]} 2. Nf3 {[%clk 0:03:00]}  e6 {[%clk 0:02:57]} 3. Bg5 {[%clk 0:03:00]}  c5 {[%clk 0:02:54]} 4. e3 {[%clk 0:02:58]}  Be7 {[%clk 0:02:48]} 5. Nbd2 {[%clk 0:02:58]}  b6 {[%clk 0:02:46]} 6. Bd3 {[%clk 0:02:55]}  Ba6 {[%clk 0:02:34]} 7. Bxa6 {[%clk 0:02:39]}  Nxa6 {[%clk 0:02:33]} 8. c3 {[%clk 0:02:39]}  O-O {[%clk 0:02:29]} 9. O-O {[%clk 0:02:40]}  h6 {[%clk 0:02:21]} 10. Bh4 {[%clk 0:02:39]}  d5 {[%clk 0:02:14]} 11. Ne5 {[%clk 0:02:36]}  Qc7 {[%clk 0:02:09]} 12. f4 {[%clk 0:02:36]}  Rac8 {[%clk 0:02:02]} 13. g4 {[%clk 0:02:27]}  Ne4 {[%clk 0:01:55]} 14. Nxe4 {[%clk 0:02:06]}  Bxh4 {[%clk 0:01:46]} 15. Nd2 {[%clk 0:02:01]}  Bf6 {[%clk 0:01:38]} 16. Ndf3 {[%clk 0:02:00]}  g6 {[%clk 0:01:23]} 17. Qd3 {[%clk 0:01:47]}  c4 {[%clk 0:01:13]} 18. Qc2 {[%clk 0:01:44]}  Bg7 {[%clk 0:01:10]} 19. h4 {[%clk 0:01:43]}  b5 {[%clk 0:01:09]} 20. h5 {[%clk 0:01:40]}  gxh5 {[%clk 0:00:58]} 21. gxh5 {[%clk 0:01:38]}  f5 {[%clk 0:00:52]} 22. Rf2 {[%clk 0:01:37]}  Kh7 {[%clk 0:00:50]} 23. Rg2 {[%clk 0:01:36]}  Bf6 {[%clk 0:00:42]} 24. Rf1 {[%clk 0:01:30]}  Rg8 {[%clk 0:00:41]} 25. Rg6 {[%clk 0:01:23]}  Rxg6+ {[%clk 0:00:33]} 26. hxg6+ {[%clk 0:01:23]}  Kg7 {[%clk 0:00:33]} 27. Rf2 {[%clk 0:01:20]}  Qe7 {[%clk 0:00:28]} 28. Rh2 {[%clk 0:01:13]}  Nb8 {[%clk 0:00:25]} 29. Qg2 {[%clk 0:01:10]}  Rh8 {[%clk 0:00:23]} 30. Nf7 {[%clk 0:01:05]}  Rg8 {[%clk 0:00:09]} 31. Qh3 {[%clk 0:00:58]}  Kf8 {[%clk 0:00:08]} 32. Qxh6+ {[%clk 0:00:58]}  Ke8 {[%clk 0:00:07]} 33. Kf2 {[%clk 0:00:58]}  Nd7 {[%clk 0:00:06]} 34. N3e5 {[%clk 0:00:58]}  Nf8 {[%clk 0:00:04]} 35. Rg2 {[%clk 0:00:56]}  b4 {[%clk 0:00:01]} 36. Nc6 {[%clk 0:00:54]} 1-0


[Site "https://www.chess.com"]

[Event "Titled Tuesday Blitz November 01 Late 2022"]
[White "Li, Ben"]
[Black "Miszler, Levente"]
[WhiteFideId "2089980"]
[BlackFideId "763276"]
[WhiteElo "2771"]
[BlackElo "2509"]
[Result "0-1"]
[Round "02"]
[TimeControl "180+1"]
[Date "2022.11.02"]
[WhiteClock "0:00:07"]
[BlackClock "0:01:02"]

1. d4 {[%clk 0:03:00]}  Nf6 {[%clk 0:02:59]} 2. c4 {[%clk 0:03:00]}  e6 {[%clk 0:02:57]} 3. Nf3 {[%clk 0:03:00]}  b6 {[%clk 0:02:56]} 4. a3 {[%clk 0:03:00]}  Bb7 {[%clk 0:02:56]} 5. Nc3 {[%clk 0:02:59]}  Ne4 {[%clk 0:02:52]} 6. Nxe4 {[%clk 0:02:59]}  Bxe4 {[%clk 0:02:53]} 7. Nd2 {[%clk 0:02:59]}  Bb7 {[%clk 0:02:53]} 8. e4 {[%clk 0:02:59]}  d6 {[%clk 0:02:49]} 9. Bd3 {[%clk 0:02:58]}  Nd7 {[%clk 0:02:47]} 10. O-O {[%clk 0:02:58]}  e5 {[%clk 0:02:46]} 11. d5 {[%clk 0:02:56]}  Nc5 {[%clk 0:02:45]} 12. Bc2 {[%clk 0:02:56]}  a5 {[%clk 0:02:45]} 13. b3 {[%clk 0:02:43]}  Be7 {[%clk 0:02:44]} 14. Rb1 {[%clk 0:02:43]}  Bc8 {[%clk 0:02:42]} 15. b4 {[%clk 0:02:43]}  axb4 {[%clk 0:02:41]} 16. axb4 {[%clk 0:02:44]}  Na6 {[%clk 0:02:41]} 17. Ba4+ {[%clk 0:02:29]}  Bd7 {[%clk 0:02:40]} 18. Nf3 {[%clk 0:02:21]}  O-O {[%clk 0:02:30]} 19. Bxd7 {[%clk 0:02:13]}  Qxd7 {[%clk 0:02:31]} 20. Be3 {[%clk 0:02:13]}  f5 {[%clk 0:02:29]} 21. exf5 {[%clk 0:01:19]}  Qxf5 {[%clk 0:02:29]} 22. Qe2 {[%clk 0:01:13]}  Nb8 {[%clk 0:02:08]} 23. Ra1 {[%clk 0:01:07]}  Nd7 {[%clk 0:02:08]} 24. Nd2 {[%clk 0:00:47]}  Nf6 {[%clk 0:02:05]} 25. f3 {[%clk 0:00:46]}  Qc2 {[%clk 0:01:58]} 26. Rac1 {[%clk 0:00:41]}  Qb2 {[%clk 0:01:54]} 27. Rb1 {[%clk 0:00:41]}  Qc2 {[%clk 0:01:54]} 28. Rfc1 {[%clk 0:00:40]}  Qg6 {[%clk 0:01:53]} 29. Ra1 {[%clk 0:00:31]}  e4 {[%clk 0:01:46]} 30. f4 {[%clk 0:00:27]}  Ng4 {[%clk 0:01:45]} 31. h3 {[%clk 0:00:25]}  Nxe3 {[%clk 0:01:44]} 32. Qxe3 {[%clk 0:00:26]}  Bf6 {[%clk 0:01:43]} 33. Rxa8 {[%clk 0:00:24]}  Rxa8 {[%clk 0:01:44]} 34. Qxe4 {[%clk 0:00:20]}  Ra2 {[%clk 0:01:31]} 35. Qxg6 {[%clk 0:00:19]}  hxg6 {[%clk 0:01:32]} 36. Ne4 {[%clk 0:00:20]}  Bd4+ {[%clk 0:01:31]} 37. Kh1 {[%clk 0:00:18]}  Be3 {[%clk 0:01:30]} 38. Re1 {[%clk 0:00:17]}  Bxf4 {[%clk 0:01:28]} 39. g3 {[%clk 0:00:15]}  Be5 {[%clk 0:01:28]} 40. b5 {[%clk 0:00:16]}  Rc2 {[%clk 0:01:27]} 41. h4 {[%clk 0:00:10]}  Rxc4 {[%clk 0:01:27]} 42. Kg2 {[%clk 0:00:10]}  Rc2+ {[%clk 0:01:26]} 43. Kh3 {[%clk 0:00:10]}  Rb2 {[%clk 0:01:24]} 44. Rc1 {[%clk 0:00:09]}  Re2 {[%clk 0:01:22]} 45. Ng5 {[%clk 0:00:06]}  Re3 {[%clk 0:01:20]} 46. Rg1 {[%clk 0:00:04]}  Bf6 {[%clk 0:01:14]} 47. Ne6 {[%clk 0:00:03]}  Rc3 {[%clk 0:01:10]} 48. Kg4 {[%clk 0:00:03]}  Kf7 {[%clk 0:01:07]} 49. Nf4 {[%clk 0:00:04]}  Rc5 {[%clk 0:01:04]} 50. Ra1 {[%clk 0:00:03]}  Bxa1 {[%clk 0:01:04]} 51. Ne6 {[%clk 0:00:03]}  Rxb5 {[%clk 0:01:03]} 52. Nxc7 {[%clk 0:00:03]}  Rb4+ {[%clk 0:01:03]} 53. Kf3 {[%clk 0:00:03]}  b5 {[%clk 0:01:03]} 54. Ne6 {[%clk 0:00:03]}  Rb3+ {[%clk 0:01:02]} 55. Kg4 {[%clk 0:00:03]}  Be5 {[%clk 0:01:02]} 56. h5 {[%clk 0:00:03]}  Rxg3+ {[%clk 0:01:02]} 57. Kh4 {[%clk 0:00:03]}  g5+ {[%clk 0:01:01]} 58. Nxg5+ {[%clk 0:00:03]}  Rxg5 {[%clk 0:01:02]} 59. h6 {[%clk 0:00:03]}  gxh6 {[%clk 0:01:00]} 60. Kh3 {[%clk 0:00:03]}  b4 {[%clk 0:01:00]} 61. Kh4 {[%clk 0:00:04]}  b3 {[%clk 0:01:01]} 62. Kh3 {[%clk 0:00:05]}  b2 {[%clk 0:01:01]} 63. Kh4 {[%clk 0:00:06]}  b1=Q {[%clk 0:01:02]} 64. Kh3 {[%clk 0:00:07]}  Qh1# {[%clk 0:01:02]} 0-1


[Site "https://www.chess.com"]

[Event "Titled Tuesday Blitz November 01 Late 2022"]
[White "Luxama, Jacques Muller"]
[Black "Besedes, Danilo"]
[WhiteFideId "11900113"]
[BlackFideId "946796"]
[WhiteElo "1931"]
[BlackElo "2352"]
[Result "0-1"]
[Round "02"]
[TimeControl "180+1"]
[Date "2022.11.02"]
[WhiteClock "0:00:50"]
[BlackClock "0:00:05"]

1. d4 {[%clk 0:03:00]}  d6 {[%clk 0:02:55]} 2. e4 {[%clk 0:02:57]}  e5 {[%clk 0:02:50]} 3. Nf3 {[%clk 0:02:56]}  exd4 {[%clk 0:02:34]} 4. Nxd4 {[%clk 0:02:55]}  Nf6 {[%clk 0:02:35]} 5. Nc3 {[%clk 0:02:54]}  Nc6 {[%clk 0:02:34]} 6. g3 {[%clk 0:02:49]}  Be7 {[%clk 0:02:33]} 7. Bg2 {[%clk 0:02:49]}  Nxd4 {[%clk 0:02:32]} 8. Qxd4 {[%clk 0:02:49]}  O-O {[%clk 0:02:33]} 9. O-O {[%clk 0:02:48]}  Be6 {[%clk 0:02:33]} 10. h3 {[%clk 0:02:47]}  c6 {[%clk 0:02:31]} 11. Bf4 {[%clk 0:02:45]}  d5 {[%clk 0:02:31]} 12. e5 {[%clk 0:02:43]}  Nd7 {[%clk 0:02:31]} 13. Qd2 {[%clk 0:02:36]}  f6 {[%clk 0:02:30]} 14. exf6 {[%clk 0:02:35]}  Bxf6 {[%clk 0:02:27]} 15. Rfe1 {[%clk 0:02:34]}  Bf7 {[%clk 0:02:26]} 16. Rad1 {[%clk 0:02:25]}  Qb6 {[%clk 0:02:21]} 17. b3 {[%clk 0:02:22]}  Rfe8 {[%clk 0:02:19]} 18. Be3 {[%clk 0:02:12]}  d4 {[%clk 0:02:13]} 19. Bxd4 {[%clk 0:01:52]}  Rxe1+ {[%clk 0:02:12]} 20. Qxe1 {[%clk 0:01:52]}  Bxd4 {[%clk 0:02:05]} 21. Na4 {[%clk 0:01:52]}  Bxf2+ {[%clk 0:01:53]} 22. Qxf2 {[%clk 0:01:53]}  Qxf2+ {[%clk 0:01:53]} 23. Kxf2 {[%clk 0:01:54]}  Ne5 {[%clk 0:01:51]} 24. Re1 {[%clk 0:01:47]}  Re8 {[%clk 0:01:43]} 25. Nc5 {[%clk 0:01:44]}  b6 {[%clk 0:01:43]} 26. Ne4 {[%clk 0:01:43]}  Nd7 {[%clk 0:01:15]} 27. Rd1 {[%clk 0:01:33]}  Bd5 {[%clk 0:01:11]} 28. Rd4 {[%clk 0:01:20]}  Rf8+ {[%clk 0:01:00]} 29. Ke3 {[%clk 0:01:17]}  Re8 {[%clk 0:00:54]} 30. c4 {[%clk 0:01:16]}  Bxe4 {[%clk 0:00:53]} 31. Rxe4 {[%clk 0:01:15]}  Rd8 {[%clk 0:00:11]} 32. Re7 {[%clk 0:01:12]}  Kf8 {[%clk 0:00:10]} 33. Re6 {[%clk 0:01:11]}  c5 {[%clk 0:00:10]} 34. Bd5 {[%clk 0:01:08]}  Nf6 {[%clk 0:00:09]} 35. Re5 {[%clk 0:01:06]}  Re8 {[%clk 0:00:08]} 36. Rxe8+ {[%clk 0:01:05]}  Kxe8 {[%clk 0:00:08]} 37. Bf3 {[%clk 0:01:02]}  Ke7 {[%clk 0:00:08]} 38. Kf4 {[%clk 0:01:02]}  Ke6 {[%clk 0:00:07]} 39. g4 {[%clk 0:01:02]}  h6 {[%clk 0:00:07]} 40. h4 {[%clk 0:01:03]}  Nd7 {[%clk 0:00:05]} 41. Be4 {[%clk 0:01:00]}  Ne5 {[%clk 0:00:05]} 42. g5 {[%clk 0:01:00]}  Kd6 {[%clk 0:00:04]} 43. gxh6 {[%clk 0:00:59]}  gxh6 {[%clk 0:00:04]} 44. Kf5 {[%clk 0:01:00]}  a6 {[%clk 0:00:04]} 45. Kf6 {[%clk 0:00:58]}  b5 {[%clk 0:00:04]} 46. Kg7 {[%clk 0:00:58]}  bxc4 {[%clk 0:00:04]} 47. bxc4 {[%clk 0:00:58]}  Nxc4 {[%clk 0:00:05]} 48. Kxh6 {[%clk 0:00:58]}  Ne5 {[%clk 0:00:05]} 49. Kg7 {[%clk 0:00:56]}  c4 {[%clk 0:00:05]} 50. h5 {[%clk 0:00:54]}  Ng4 {[%clk 0:00:04]} 51. h6 {[%clk 0:00:53]}  Nxh6 {[%clk 0:00:05]} 52. Kxh6 {[%clk 0:00:53]}  Ke5 {[%clk 0:00:05]} 53. Bb7 {[%clk 0:00:52]}  c3 {[%clk 0:00:04]} 54. Bxa6 {[%clk 0:00:51]}  c2 {[%clk 0:00:04]} 55. Be2 {[%clk 0:00:50]}  c1=Q+ {[%clk 0:00:05]} 0-1


[Site "https://www.chess.com"]

[Event "Titled Tuesday Blitz November 01 Late 2022"]
[White "Malka, Samuel"]
[Black "Ferriz Barrios, Andres"]
[WhiteFideId "20643675"]
[BlackFideId "5104467"]
[WhiteElo "2460"]
[BlackElo "2227"]
[Result "0-1"]
[Round "02"]
[TimeControl "180+1"]
[Date "2022.11.02"]
[WhiteClock "0:00:03"]
[BlackClock "0:00:15"]

1. d4 {[%clk 0:02:52]}  Nf6 {[%clk 0:02:35]} 2. c4 {[%clk 0:02:51]}  e5 {[%clk 0:02:35]} 3. dxe5 {[%clk 0:02:50]}  Ng4 {[%clk 0:02:35]} 4. e3 {[%clk 0:02:51]}  Nxe5 {[%clk 0:02:35]} 5. f4 {[%clk 0:02:51]}  Ng6 {[%clk 0:02:32]} 6. Nc3 {[%clk 0:02:50]}  Bb4 {[%clk 0:02:30]} 7. Bd2 {[%clk 0:02:37]}  O-O {[%clk 0:02:29]} 8. Nf3 {[%clk 0:02:37]}  Re8 {[%clk 0:02:29]} 9. Be2 {[%clk 0:02:30]}  c6 {[%clk 0:02:28]} 10. O-O {[%clk 0:02:22]}  Bc5 {[%clk 0:02:25]} 11. Nd4 {[%clk 0:02:00]}  Qf6 {[%clk 0:02:22]} 12. Bc1 {[%clk 0:01:50]}  Na6 {[%clk 0:02:07]} 13. Bf3 {[%clk 0:01:43]}  Qd8 {[%clk 0:01:53]} 14. a3 {[%clk 0:01:39]}  d6 {[%clk 0:01:48]} 15. Kh1 {[%clk 0:01:36]}  Bd7 {[%clk 0:01:37]} 16. Qd3 {[%clk 0:01:26]}  Qh4 {[%clk 0:01:29]} 17. b4 {[%clk 0:01:17]}  Bb6 {[%clk 0:01:28]} 18. Bd2 {[%clk 0:01:02]}  Nc7 {[%clk 0:01:22]} 19. Rae1 {[%clk 0:00:53]}  a6 {[%clk 0:01:21]} 20. g3 {[%clk 0:00:53]}  Qf6 {[%clk 0:01:16]} 21. Ne4 {[%clk 0:00:53]}  Qe7 {[%clk 0:01:12]} 22. Ng5 {[%clk 0:00:41]}  h6 {[%clk 0:01:12]} 23. Ne4 {[%clk 0:00:39]}  d5 {[%clk 0:01:11]} 24. Nc3 {[%clk 0:00:31]}  dxc4 {[%clk 0:01:09]} 25. Qxc4 {[%clk 0:00:32]}  Nb5 {[%clk 0:01:00]} 26. Ncxb5 {[%clk 0:00:28]}  axb5 {[%clk 0:01:01]} 27. Qc3 {[%clk 0:00:23]}  Nf8 {[%clk 0:00:55]} 28. Nc2 {[%clk 0:00:21]}  Ne6 {[%clk 0:00:53]} 29. e4 {[%clk 0:00:21]}  Nc7 {[%clk 0:00:37]} 30. Ne3 {[%clk 0:00:20]}  Be6 {[%clk 0:00:37]} 31. f5 {[%clk 0:00:20]}  Bxe3 {[%clk 0:00:34]} 32. Bxe3 {[%clk 0:00:19]}  Bc4 {[%clk 0:00:34]} 33. Bc5 {[%clk 0:00:19]}  Qd7 {[%clk 0:00:25]} 34. Rd1 {[%clk 0:00:19]}  Qc8 {[%clk 0:00:23]} 35. Rfe1 {[%clk 0:00:19]}  Na6 {[%clk 0:00:23]} 36. Bd4 {[%clk 0:00:19]}  f6 {[%clk 0:00:24]} 37. e5 {[%clk 0:00:19]}  Qxf5 {[%clk 0:00:21]} 38. exf6 {[%clk 0:00:18]}  Rxe1+ {[%clk 0:00:20]} 39. Rxe1 {[%clk 0:00:18]}  Rd8 {[%clk 0:00:20]} 40. Be4 {[%clk 0:00:15]}  Qd7 {[%clk 0:00:18]} 41. Be5 {[%clk 0:00:13]}  Qd2 {[%clk 0:00:18]} 42. Qxd2 {[%clk 0:00:13]}  Rxd2 {[%clk 0:00:19]} 43. fxg7 {[%clk 0:00:13]}  Nxb4 {[%clk 0:00:17]} 44. Bg6 {[%clk 0:00:10]}  Bd5+ {[%clk 0:00:14]} 45. Kg1 {[%clk 0:00:10]}  Nd3 {[%clk 0:00:14]} 46. Rb1 {[%clk 0:00:07]}  Nf2 {[%clk 0:00:14]} 47. Bf4 {[%clk 0:00:05]}  Nh3+ {[%clk 0:00:14]} 48. Kf1 {[%clk 0:00:06]}  Rxh2 {[%clk 0:00:12]} 49. Ke1 {[%clk 0:00:07]}  Nxf4 {[%clk 0:00:12]} 50. gxf4 {[%clk 0:00:06]}  Rg2 {[%clk 0:00:12]} 51. Bf5 {[%clk 0:00:04]}  Rxg7 {[%clk 0:00:13]} 52. Rb2 {[%clk 0:00:03]}  Re7+ {[%clk 0:00:14]} 53. Kf2 {[%clk 0:00:02]}  Kf7 {[%clk 0:00:15]} 54. Kg3 {[%clk 0:00:02]}  Kf6 {[%clk 0:00:16]} 55. Bg4 {[%clk 0:00:03]}  Rg7 {[%clk 0:00:17]} 56. Rh2 {[%clk 0:00:03]}  Kf7 {[%clk 0:00:15]} 57. Rxh6 {[%clk 0:00:03]}  Rg6 {[%clk 0:00:15]} 0-1


[Site "https://www.chess.com"]

[Event "Titled Tuesday Blitz November 01 Late 2022"]
[White "Marchesich, Giovanni"]
[Black "Rodriguez Fontecha, Marcos"]
[WhiteFideId "2824790"]
[BlackFideId "2256576"]
[WhiteElo "2200"]
[BlackElo "2263"]
[Result "0-1"]
[Round "02"]
[TimeControl "180+1"]
[Date "2022.11.02"]
[WhiteClock "0:01:21"]
[BlackClock "0:00:43"]

1. d4 {[%clk 0:03:00]}  d5 {[%clk 0:02:59]} 2. Nf3 {[%clk 0:03:00]}  Nf6 {[%clk 0:02:59]} 3. c3 {[%clk 0:03:00]}  Bf5 {[%clk 0:02:58]} 4. Bg5 {[%clk 0:03:00]}  e6 {[%clk 0:02:56]} 5. e3 {[%clk 0:02:58]}  Be7 {[%clk 0:02:53]} 6. Nbd2 {[%clk 0:02:57]}  O-O {[%clk 0:02:49]} 7. Ne5 {[%clk 0:02:58]}  c5 {[%clk 0:02:46]} 8. f4 {[%clk 0:02:54]}  Ne4 {[%clk 0:02:40]} 9. Bxe7 {[%clk 0:02:53]}  Qxe7 {[%clk 0:02:41]} 10. Nxe4 {[%clk 0:02:48]}  Bxe4 {[%clk 0:02:41]} 11. Bd3 {[%clk 0:02:38]}  f6 {[%clk 0:02:21]} 12. Nf3 {[%clk 0:02:32]}  Nd7 {[%clk 0:02:18]} 13. O-O {[%clk 0:02:32]}  Rad8 {[%clk 0:02:09]} 14. Qc2 {[%clk 0:02:30]}  f5 {[%clk 0:01:51]} 15. Bxe4 {[%clk 0:02:25]}  dxe4 {[%clk 0:01:52]} 16. Ne5 {[%clk 0:02:25]}  Nxe5 {[%clk 0:01:52]} 17. dxe5 {[%clk 0:02:20]}  Rd3 {[%clk 0:01:51]} 18. Rad1 {[%clk 0:02:19]}  Rxe3 {[%clk 0:01:46]} 19. Kf2 {[%clk 0:02:12]}  Rd3 {[%clk 0:01:32]} 20. Rxd3 {[%clk 0:02:11]}  exd3 {[%clk 0:01:33]} 21. Qxd3 {[%clk 0:02:12]}  Rd8 {[%clk 0:01:28]} 22. Qe2 {[%clk 0:01:48]}  Rd5 {[%clk 0:01:11]} 23. Qf3 {[%clk 0:01:21]}  Rd2+ {[%clk 0:00:52]} 24. Ke3 {[%clk 0:01:21]}  Qd7 {[%clk 0:00:43]} 0-1


[Site "https://www.chess.com"]